bitfinex/quotes_ETHUSD_20230118
["timestamp","ask_amount","ask_price","bid_price","bid_amount"]
[1674051216963,3.0,1601.0,1600.9,9.58752821]
[1674051217169,1.26476557,1601.0,1600.9,9.58752821]
[1674051217489,1.26476557,1601.0,1600.9,17.48352821]
[1674051217694,1.26476557,1601.0,1600.9,17.95222821]
[1674051218686,1.26476557,1601.0,1600.9,19.03667226]
[1674051219589,1.26476557,1601.0,1600.9,19.03667619]
[1674051220064,1.26476557,1601.0,1600.9,18.39993446]
[1674051220065,0.00076557,1601.0,1600.9,18.39993446]
[1674051220231,0.16011915,1601.2,1601.1,6.653]
[1674051220588,0.16011915,1601.2,1601.1,16.4389658]
[1674051221400,0.16011915,1601.2,1601.1,9.7859658]
[1674051222046,0.50311915,1601.2,1601.1,0.064]
[1674051222237,0.50311915,1601.2,1600.9,13.0743]
[1674051222445,0.50311915,1601.2,1600.9,17.49635407]
[1674051222895,0.50311915,1601.2,1600.9,4.48805407]
[1674051223111,0.50311915,1601.2,1600.9,3.11662407]
[1674051223639,0.50311915,1601.2,1600.8,3.066]
[1674051223847,0.50311915,1601.2,1600.7,0.066]
[1674051224057,0.50311915,1601.2,1600.7,3.11662407]
[1674051224268,0.50311915,1601.2,1600.8,3.11662407]
[1674051224596,0.50311915,1601.2,1600.9,3.1]
[1674051224757,0.16011915,1601.2,1600.9,3.1]
[1674051229366,0.16011915,1601.2,1600.9,3.09645651]
[1674051233193,0.11011915,1601.2,1600.9,3.09645651]
[1674051236708,4.35562407,1601.1,1600.9,3.09645651]
[1674051236918,1.67356241,1601.0,1600.9,3.09645651]
[1674051237219,4.67356241,1601.0,1600.9,3.09645651]
[1674051237583,5.67356241,1601.0,1600.9,3.09645651]
[1674051237797,4.74056241,1601.0,1600.9,3.09645651]
[1674051238008,0.43556241,1601.0,1600.9,3.09645651]
[1674051238218,4.239,1601.1,1600.9,3.09645651]
[1674051238533,1.239,1601.1,1600.9,3.09645651]
[1674051238997,1.32454,1601.0,1600.9,3.09645651]
[1674051239171,4.32454,1601.0,1600.9,3.09645651]
[1674051239381,5.880894,1601.0,1600.9,3.09645651]
[1674051239597,5.947894,1601.0,1600.9,3.09645651]
[1674051240218,3.708894,1601.0,1600.9,3.09645651]
[1674051240473,0.556354,1601.0,1600.9,3.09645651]
[1674051240642,4.306,1601.1,1600.9,3.09645651]
[1674051240852,0.26263915,1601.2,1600.9,3.09645651]
[1674051241081,0.11011915,1601.2,1600.9,3.09645651]
[1674051242877,4.35762407,1601.1,1600.9,3.09645651]
[1674051243054,1.247,1601.0,1600.9,3.09645651]
[1674051243264,1.4958,1601.0,1600.9,3.09645651]
[1674051244206,4.4958,1601.0,1600.9,3.09645651]
[1674051244424,7.69799407,1601.0,1600.9,3.09645651]
[1674051244630,7.76499407,1601.0,1600.9,3.09645651]
[1674051244947,7.61499407,1601.0,1600.9,3.09645651]
[1674051245585,8.61499407,1601.0,1600.9,3.09645651]
[1674051246623,7.61499407,1601.0,1600.9,3.09645651]
[1674051249460,8.61499407,1601.0,1600.9,3.09645651]
[1674051250746,1.0,1600.9,1600.7,0.066]
[1674051251095,5.69618407,1600.8,1600.6,1.27760612]
[1674051251307,7.35562407,1600.7,1600.6,1.27760612]
[1674051251524,7.42262407,1600.7,1600.6,1.27760612]
[1674051252406,4.42262407,1600.7,1600.6,1.27760612]
[1674051252673,4.93214248,1600.7,1600.6,1.27760612]
[1674051253035,6.17214248,1600.7,1600.6,1.27760612]
[1674051253279,6.23914248,1600.7,1600.6,1.27760612]
[1674051253821,6.32469248,1600.7,1600.6,1.27760612]
[1674051254938,6.32469248,1600.7,1600.5,0.65176193]
[1674051254939,1.0,1600.6,1600.5,0.65176193]
[1674051255157,10.38194332,1600.6,1600.5,0.65176193]
[1674051255377,10.44894332,1600.6,1600.5,0.65176193]
[1674051256766,1.0,1600.5,1600.0,0.0554924]
[1674051257079,1.239,1600.2,1600.0,0.0554924]
[1674051257288,3.11662407,1600.1,1600.0,0.0554924]
[1674051257460,3.55218648,1600.1,1600.0,0.0554924]
[1674051257819,0.43556241,1600.1,1600.0,0.0554924]
[1674051258030,1.32255,1600.3,1600.0,0.0554924]
[1674051258241,3.11662407,1600.2,1600.0,0.0554924]
[1674051258560,3.11662407,1600.1,1600.0,0.0554924]
[1674051261140,1.314,1600.2,1600.0,0.0554924]
[1674051261346,3.11662407,1600.2,1600.0,0.0554924]
[1674051261766,3.42828648,1600.2,1600.0,0.0554924]
[1674051262437,3.11662407,1600.1,1600.0,0.0554924]
[1674051263438,1.62566241,1600.2,1600.0,0.0554924]
[1674051263702,3.11662407,1600.2,1600.0,0.0554924]
[1674051263869,0.097,1600.1,1600.0,0.0554924]
[1674051264079,0.44,1600.1,1600.0,0.0554924]
[1674051264656,3.55662407,1600.1,1600.0,0.0554924]
[1674051265456,0.44,1600.1,1600.0,0.0554924]
[1674051266227,0.44,1600.1,1600.0,3.1554924]
[1674051266587,3.55662407,1600.1,1600.0,3.1554924]
[1674051266801,3.91228648,1600.1,1600.0,3.1554924]
[1674051267254,6.91228648,1600.1,1600.0,3.1554924]
[1674051267471,6.97928648,1600.1,1600.0,3.1554924]
[1674051268118,3.97928648,1600.1,1600.0,3.1554924]
[1674051268346,3.91228648,1600.1,1600.0,3.1554924]
[1674051268830,3.91428648,1600.1,1600.0,3.1554924]
[1674051269040,3.91228648,1600.1,1600.0,3.1554924]
[1674051271385,8.15428648,1600.1,1600.0,3.1554924]
[1674051271602,8.22128648,1600.1,1600.0,3.1554924]
[1674051271987,3.97928648,1600.1,1600.0,3.1554924]
[1674051272201,3.91228648,1600.1,1600.0,3.1554924]
[1674051272738,5.15928648,1600.1,1600.0,3.1554924]
[1674051272954,5.22628648,1600.1,1600.0,3.1554924]
[1674051274279,3.97928648,1600.1,1600.0,3.1554924]
[1674051274524,3.91228648,1600.1,1600.0,3.1554924]
[1674051274858,0.44,1600.1,1600.0,3.1554924]
[1674051275437,0.097,1600.1,1600.0,3.1554924]
[1674051277689,0.44,1600.1,1600.0,3.1554924]
[1674051278692,3.55662407,1600.1,1600.0,3.1554924]
[1674051279121,3.55662407,1600.1,1600.0,3.15196191]
[1674051279473,4.34368648,1600.1,1600.0,3.15196191]
[1674051279779,7.34368648,1600.1,1600.0,3.15196191]
[1674051279985,7.41068648,1600.1,1600.0,3.15196191]
[1674051280948,8.65668648,1600.1,1600.0,3.15196191]
[1674051282424,5.65668648,1600.1,1600.0,3.15196191]
[1674051282858,5.74223648,1600.1,1600.0,3.15196191]
[1674051283169,5.90123648,1600.1,1600.0,3.15196191]
[1674051283476,6.81568648,1600.1,1600.0,3.15196191]
[1674051283686,5.81568648,1600.1,1600.0,3.15196191]
[1674051287778,7.30623648,1600.1,1600.0,3.15196191]
[1674051287980,8.30623648,1600.1,1600.0,3.15196191]
[1674051288737,5.90123648,1600.1,1600.0,3.15196191]
[1674051289103,4.41068648,1600.1,1600.0,3.15196191]
[1674051289307,4.34368648,1600.1,1600.0,3.15196191]
[1674051289548,3.55662407,1600.1,1600.0,3.15196191]
[1674051290742,6.7623323,1600.1,1600.0,3.15196191]
[1674051290916,7.81117142,1600.1,1600.0,3.15196191]
[1674051291292,6.00746319,1600.1,1600.0,3.15196191]
[1674051291594,4.92562407,1600.1,1600.0,3.15196191]
[1674051291916,5.76171121,1600.1,1600.0,3.15196191]
[1674051292159,4.42671121,1600.1,1600.0,3.15196191]
[1674051292440,5.16390321,1600.1,1600.0,3.15196191]
[1674051292611,8.23090321,1600.1,1600.0,3.15196191]
[1674051292821,8.18090321,1600.1,1600.0,3.15196191]
[1674051293582,7.52644567,1600.1,1600.0,3.15196191]
[1674051293777,3.53762407,1600.1,1600.0,3.15196191]
[1674051293963,3.47062407,1600.1,1600.0,3.15196191]
[1674051295136,3.18062407,1600.1,1600.0,3.15196191]
[1674051296534,3.17777635,1600.1,1600.0,3.15196191]
[1674051300280,6.17777635,1600.1,1600.0,3.15196191]
[1674051300506,3.24477635,1600.1,1600.0,3.15196191]
[1674051300717,3.17777635,1600.1,1600.0,3.15196191]
[1674051301145,3.18062407,1600.1,1600.0,3.15196191]
[1674051301472,0.064,1600.1,1600.0,3.15196191]
[1674051302678,0.064,1600.1,1600.0,16.19886691]
[1674051302888,0.064,1600.1,1600.0,17.25155346]
[1674051303098,0.064,1600.1,1600.0,17.72045346]
[1674051303581,0.064,1600.1,1600.0,16.15383835]
[1674051303725,0.064,1600.1,1600.0,10.90394558]
[1674051304203,0.064,1600.1,1600.0,18.21111432]
[1674051304361,0.064,1600.1,1600.0,19.19299457]
[1674051304580,1.30812202,1600.3,1600.0,19.59829044]
[1674051304783,1.30812202,1600.3,1600.2,4.4564857]
[1674051304994,1.30812202,1600.3,1600.2,10.66985463]
[1674051305314,1.31012202,1600.3,1600.2,10.73185463]
[1674051305683,0.88697927,1600.6,1600.3,1.0]
[1674051305829,0.88697927,1600.6,1600.4,2.83846115]
[1674051305830,0.82197927,1600.6,1600.4,2.83846115]
[1674051306041,0.81997927,1600.6,1600.5,1.68484612]
[1674051306267,0.81997927,1600.6,1600.5,2.65850149]
[1674051306784,0.81997927,1600.6,1600.5,6.67527019]
[1674051306994,3.59399701,1600.7,1600.5,18.3724914]
[1674051307337,3.52699701,1600.7,1600.6,6.00718087]
[1674051307549,3.52699701,1600.7,1600.6,18.23681656]
[1674051308088,3.52699701,1600.7,1600.6,17.15203816]
[1674051309090,3.52699701,1600.7,1600.6,8.63041409]
[1674051310516,3.52699701,1600.7,1600.6,5.31158742]
[1674051312715,2.76824397,1600.8,1600.6,6.71658742]
[1674051312937,0.067,1600.9,1600.7,1.396]
[1674051313156,0.16003266,1601.0,1600.8,1.401]
[1674051313306,0.16003266,1601.0,1600.8,1.405]
[1674051313521,0.16003266,1601.0,1600.9,1.2462]
[1674051313727,0.16003266,1601.0,1600.9,2.1695]
[1674051316391,0.16003266,1601.0,1600.9,1.392]
[1674051317229,0.16003266,1601.0,1600.8,1.405]
[1674051317230,0.50303266,1601.0,1600.8,1.405]
[1674051317419,0.16003266,1601.0,1600.8,1.405]
[1674051317827,0.16003266,1601.0,1600.9,6.39332407]
[1674051318038,0.11011915,1601.2,1600.9,6.39332407]
[1674051318039,0.11011915,1601.2,1601.0,1.0]
[1674051318273,0.11011915,1601.2,1601.1,6.65862407]
[1674051318578,0.11011915,1601.2,1601.1,6.72262407]
[1674051318780,0.11011915,1601.2,1601.1,7.19122407]
[1674051319460,0.11011915,1601.2,1601.1,11.58422407]
[1674051319811,0.15513987,1601.3,1601.2,1.73915969]
[1674051319990,0.15513987,1601.3,1601.2,11.11438376]
[1674051320136,0.15513987,1601.3,1601.2,10.17838376]
[1674051320974,0.15513987,1601.3,1601.2,10.07622407]
[1674051321819,0.15513987,1601.3,1601.2,10.07422407]
[1674051322063,0.15513987,1601.3,1601.2,10.07622407]
[1674051322301,0.15513987,1601.3,1601.2,11.08404648]
[1674051322443,1.30372674,1601.4,1601.3,1.0]
[1674051322653,1.30372674,1601.4,1601.3,10.39522407]
[1674051322864,1.30372674,1601.4,1601.3,10.45922407]
[1674051323131,1.30372674,1601.4,1601.3,17.11222407]
[1674051323302,1.30372674,1601.4,1601.3,18.66207296]
[1674051324036,0.16521971,1601.6,1601.4,7.956]
[1674051324261,0.16521971,1601.6,1601.5,17.43312407]
[1674051324442,0.17465985,1601.7,1601.6,1.0]
[1674051324809,0.17465985,1601.7,1601.6,7.39212407]
[1674051324963,0.17465985,1601.7,1601.6,11.46394648]
[1674051325386,0.17465985,1601.7,1601.6,11.13094648]
[1674051327698,0.17465985,1601.7,1601.6,17.78394648]
[1674051327956,3.94023581,1602.0,1601.6,11.13094648]
[1674051328114,3.94023581,1602.0,1601.7,9.71071872]
[1674051328327,3.94023581,1602.0,1601.7,9.77471872]
[1674051328584,3.94023581,1602.0,1601.7,10.77471872]
[1674051328776,3.94023581,1602.0,1601.7,17.90069433]
[1674051329875,3.94023581,1602.0,1601.7,11.24769433]
[1674051333584,3.94023581,1602.0,1601.8,1.18713976]
[1674051333830,3.94023581,1602.0,1601.8,7.52908063]
[1674051334043,3.94023581,1602.0,1601.8,5.70054087]
[1674051334375,3.94023581,1602.0,1601.8,8.70054087]
[1674051334738,1.62583066,1601.9,1601.8,9.93754087]
[1674051335377,1.62583066,1601.9,1601.8,10.93754087]
[1674051335593,1.62583066,1601.9,1601.8,9.93754087]
[1674051336214,1.62583066,1601.9,1601.8,10.93754087]
[1674051336461,1.62583066,1601.9,1601.8,9.93754087]
[1674051337048,1.62583066,1601.9,1601.8,6.93754087]
[1674051337306,1.62583066,1601.9,1601.8,2.551]
[1674051337522,1.62583066,1601.9,1601.8,2.487]
[1674051338136,1.62583066,1601.9,1601.8,1.25]
[1674051338314,1.62583066,1601.9,1601.6,1.244]
[1674051338703,1.62583066,1601.9,1601.7,1.244]
[1674051339007,1.62583066,1601.9,1601.8,1.238]
[1674051339888,1.62583066,1601.9,1601.8,1.87885707]
[1674051340468,1.62583066,1601.9,1601.8,5.31416685]
[1674051340682,1.62583066,1601.9,1601.8,9.62216685]
[1674051340833,1.62583066,1601.9,1601.8,10.25890858]
[1674051341211,1.62583066,1601.9,1601.8,11.25890858]
[1674051341905,1.62583066,1601.9,1601.8,10.25890858]
[1674051342114,1.62583066,1601.9,1601.8,5.5795988]
[1674051342543,1.62583066,1601.9,1601.8,4.94285707]
[1674051342754,1.62583066,1601.9,1601.8,9.23648114]
[1674051343005,1.62583066,1601.9,1601.8,9.30048114]
[1674051343328,1.62583066,1601.9,1601.8,10.30048114]
[1674051343481,1.62583066,1601.9,1601.8,12.52842855]
[1674051344561,1.62583066,1601.9,1601.8,12.99682855]
[1674051344770,1.62583066,1601.9,1601.8,12.52842855]
[1674051344977,1.62583066,1601.9,1601.8,11.52842855]
[1674051346483,1.62583066,1601.9,1601.8,12.52842855]
[1674051346652,1.62583066,1601.9,1601.8,10.04942855]
[1674051346863,1.62583066,1601.9,1601.8,9.04942855]
[1674051347077,1.62583066,1601.9,1601.8,7.45822287]
[1674051348322,1.62583066,1601.9,1601.8,8.45822287]
[1674051348776,1.62583066,1601.9,1601.8,9.54207053]
[1674051349179,1.62583066,1601.9,1601.8,8.45822287]
[1674051349531,1.62583066,1601.9,1601.8,26.98470194]
[1674051349745,1.62583066,1601.9,1601.8,29.36771339]
[1674051349898,1.62583066,1601.9,1601.8,12.98470194]
[1674051350108,1.62583066,1601.9,1601.8,11.25222287]
[1674051350379,3.94023581,1602.0,1601.9,1.0]
[1674051350531,3.94023581,1602.0,1601.9,11.49788008]
[1674051350532,3.87323581,1602.0,1601.9,11.49788008]
[1674051350734,0.38734315,1602.2,1602.0,5.272]
[1674051351105,0.38734315,1602.2,1602.1,5.50593954]
[1674051351261,0.38734315,1602.2,1602.1,8.56993954]
[1674051351481,0.38734315,1602.2,1602.1,11.68656361]
[1674051352117,0.38734315,1602.2,1602.1,12.33548882]
[1674051352326,3.23279524,1602.6,1602.1,18.8727025]
[1674051352538,3.23279524,1602.6,1602.5,5.91462407]
[1674051352747,3.23279524,1602.6,1602.5,8.97862407]
[1674051352964,3.23279524,1602.6,1602.5,10.69881227]
[1674051353289,3.23279524,1602.6,1602.5,9.6153658]
[1674051353505,3.23279524,1602.6,1602.5,10.69883803]
[1674051353714,1.58794217,1602.6,1602.5,12.40206092]
[1674051353890,1.58794217,1602.6,1602.5,13.05145177]
[1674051354104,1.58794217,1602.6,1602.5,12.40663425]
[1674051354536,1.58794217,1602.6,1602.5,14.03004934]
[1674051354723,0.17306817,1602.8,1602.6,0.90883531]
[1674051354938,0.17306817,1602.8,1602.7,5.90662407]
[1674051355150,0.17306817,1602.8,1602.7,12.08783803]
[1674051355412,0.17306817,1602.8,1602.7,13.737132]
[1674051355727,0.17306817,1602.8,1602.7,13.71639061]
[1674051355938,0.17306817,1602.8,1602.7,13.2910441]
[1674051356092,0.17306817,1602.8,1602.7,13.7591441]
[1674051356303,0.17306817,1602.8,1602.7,12.13640164]
[1674051356631,0.17306817,1602.8,1602.7,12.31739061]
[1674051356827,0.17737924,1602.9,1602.8,1.78310387]
[1674051357036,0.17737924,1602.9,1602.8,27.78670786]
[1674051357246,0.066,1603.5,1602.8,28.49979683]
[1674051357498,1.0656777,1603.7,1603.0,17.11662407]
[1674051357499,0.1316777,1603.7,1603.0,17.11662407]
[1674051357709,0.0056777,1603.7,1603.2,3.11662407]
[1674051357916,0.0056777,1603.7,1603.2,7.19965149]
[1674051358142,0.0056777,1603.7,1603.2,22.96332906]
[1674051358767,0.0056777,1603.7,1603.2,25.75732906]
[1674051358933,0.0056777,1603.7,1603.2,27.15432906]
[1674051359348,0.0056777,1603.7,1603.2,12.07130164]
[1674051359349,0.0716777,1603.7,1603.2,12.07130164]
[1674051359821,1.998,1603.6,1603.2,10.67430164]
[1674051359987,2.064,1603.6,1603.2,6.18062407]
[1674051360361,3.064,1603.6,1603.2,3.18062407]
[1674051360562,2.064,1603.6,1603.2,3.11662407]
[1674051361452,0.066,1603.6,1603.2,3.11662407]
[1674051361697,0.0716777,1603.7,1603.2,4.51362407]
[1674051361886,0.0716777,1603.7,1603.2,5.9076658]
[1674051362109,0.002,1603.6,1603.2,7.95103238]
[1674051362342,0.0716777,1603.7,1603.2,14.60603238]
[1674051362555,0.0716777,1603.7,1603.2,18.6890241]
[1674051363076,0.0716777,1603.7,1603.2,9.55603238]
[1674051363291,0.0716777,1603.7,1603.1,0.002]
[1674051363292,1.974,1603.6,1603.1,0.002]
[1674051363501,5.54,1603.6,1602.6,5.24717839]
[1674051363690,3.5,1603.5,1602.9,0.062]
[1674051363881,0.066,1603.5,1602.9,0.062]
[1674051364234,2.1,1603.6,1602.9,3.17862407]
[1674051364449,1.24352081,1603.3,1602.9,3.11662407]
[1674051364659,0.12435208,1603.2,1602.8,1.40142213]
[1674051364814,0.12435208,1603.2,1602.8,4.5180462]
[1674051365235,1.24352081,1603.3,1602.8,4.5180462]
[1674051365444,1.24352081,1603.3,1602.8,1.40142213]
[1674051365905,1.24352081,1603.3,1602.8,4.5180462]
[1674051366230,1.24352081,1603.3,1602.9,4.397]
[1674051366445,1.24352081,1603.3,1602.8,1.46742213]
[1674051366599,0.12435208,1603.2,1602.8,1.40142213]
[1674051367244,3.24097615,1603.2,1602.6,0.066]
[1674051367455,1.392,1603.1,1602.4,1.463]
[1674051367669,1.392,1603.1,1602.9,0.65955]
[1674051368491,8.93145208,1603.2,1602.9,0.65955]
[1674051368765,0.79314521,1603.1,1602.9,0.65955]
[1674051369121,8.8071,1603.2,1602.9,0.65955]
[1674051369802,0.066,1603.2,1603.0,0.23]
[1674051370017,1.24352081,1603.3,1603.0,0.23]
[1674051371221,5.75714488,1603.3,1602.9,0.65955]
[1674051371434,3.11662407,1603.2,1602.9,0.65955]
[1674051371686,0.31166241,1603.1,1602.9,0.65955]
[1674051371905,0.21166241,1603.1,1602.9,0.65955]
[1674051372705,2.64052081,1603.3,1602.9,0.65955]
[1674051373114,2.64052081,1603.3,1602.9,3.1]
[1674051373326,3.11662407,1603.2,1602.9,3.1]
[1674051373970,1.397,1603.1,1602.9,3.1]
[1674051374343,1.0,1603.1,1602.9,3.1]
[1674051374484,2.477,1603.0,1602.9,3.1]
[1674051375318,1.0,1602.9,1602.7,0.066]
[1674051375586,1.397,1602.9,1602.4,3.11662407]
[1674051375755,1.397,1602.9,1602.5,0.23]
[1674051375966,1.397,1602.9,1602.3,0.066]
[1674051375967,1.397,1602.6,1602.3,0.066]
[1674051376322,1.5257,1602.5,1602.0,0.04932026]
[1674051376712,4.64232407,1602.5,1602.0,0.04932026]
[1674051377051,1.397,1602.4,1602.0,0.04932026]
[1674051377786,1.397,1602.1,1601.6,0.71490808]
[1674051377981,3.11662407,1602.0,1601.4,0.71490808]
[1674051378154,1.397,1601.7,1601.2,1.68841436]
[1674051378365,3.11662407,1601.6,1601.3,1.08422354]
[1674051378577,3.11662407,1601.6,1601.1,1.68841436]
[1674051378839,3.11662407,1601.6,1601.2,1.73319646]
[1674051378840,1.397,1601.4,1601.2,1.73319646]
[1674051379049,3.18262407,1601.6,1601.5,1.73486707]
[1674051379220,4.97158648,1601.6,1601.5,1.73486707]
[1674051379641,1.85496241,1601.6,1601.5,1.73486707]
[1674051379852,1.397,1601.7,1601.5,1.73486707]
[1674051380439,1.397,1601.6,1601.5,1.73486707]
[1674051380609,4.51362407,1601.6,1601.5,1.73486707]
[1674051381173,1.397,1601.6,1601.5,1.73486707]
[1674051381488,1.463,1601.8,1601.5,1.99996939]
[1674051381700,1.397,1601.9,1601.5,1.99996939]
[1674051382010,1.399,1601.9,1601.5,1.99996939]
[1674051382167,1.397,1601.9,1601.5,1.99996939]
[1674051382699,0.24056991,1601.9,1601.5,0.26510232]
[1674051382927,0.24056991,1601.9,1601.3,4.5346]
[1674051383156,0.24056991,1601.9,1601.3,6.58522407]
[1674051383345,0.24056991,1601.9,1601.3,6.64922407]
[1674051383687,1.388,1601.8,1601.3,3.064]
[1674051383847,1.395,1602.0,1601.2,0.066]
[1674051383848,1.397,1601.5,1601.2,0.066]
[1674051384059,1.397,1601.5,1601.1,3.05892452]
[1674051384393,1.397,1601.5,1601.1,6.17554859]
[1674051384615,1.463,1601.7,1601.1,6.70814859]
[1674051384834,1.397,1601.7,1601.1,6.70814859]
[1674051385164,1.397,1601.4,1601.3,0.3]
[1674051386337,1.397,1601.5,1601.3,0.3]
[1674051388631,1.397,1601.6,1601.3,0.3]
[1674051389154,1.397,1601.6,1601.3,0.30591502]
[1674051389476,1.463,1601.8,1601.4,0.23]
[1674051389684,0.004,1601.8,1601.4,0.23]
[1674051389996,1.395,1602.0,1601.5,3.11662407]
[1674051390149,1.397,1601.9,1601.6,0.23]
[1674051390358,0.74646992,1601.9,1601.6,0.23]
[1674051390628,1.397,1601.8,1601.5,0.23]
[1674051390840,1.84836241,1601.8,1601.4,0.23]
[1674051391149,1.386,1601.5,1601.3,0.3]
[1674051391837,1.463,1601.7,1601.3,0.3]
[1674051392055,1.397,1601.4,1601.3,0.3]
[1674051392257,1.397,1601.5,1601.3,0.3]
[1674051392508,0.066,1601.7,1601.3,0.3]
[1674051392712,0.066,1602.1,1601.3,0.3]
[1674051392973,3.11662407,1602.0,1601.3,0.3]
[1674051393123,1.392,1601.9,1601.4,0.23]
[1674051393460,3.18262407,1602.0,1601.4,0.23]
[1674051393656,1.245,1601.8,1601.4,0.23]
[1674051393847,1.239,1601.9,1601.4,0.23]
[1674051394743,1.39654,1602.1,1601.4,3.34662407]
[1674051394883,19.9752,1602.2,1601.5,7.91978648]
[1674051395095,18.7352,1602.2,1601.6,3.34662407]
[1674051395310,18.7352,1602.2,1601.7,0.4684]
[1674051395311,0.066,1602.2,1601.7,0.4684]
[1674051395561,1.237,1602.4,1601.8,0.23]
[1674051396096,1.4507,1602.5,1601.8,3.34662407]
[1674051396246,19.6926,1602.6,1601.9,3.80306241]
[1674051396457,1.311,1602.6,1602.0,0.23]
[1674051396724,1.245,1602.6,1602.0,0.23]
[1674051396940,1.237,1602.5,1602.0,0.23]
[1674051397087,4.36062407,1602.5,1602.0,0.23]
[1674051397297,1.68006241,1602.4,1602.0,0.23]
[1674051397515,0.43606241,1602.4,1602.0,0.23]
[1674051398135,3.11662407,1602.5,1601.9,0.23]
[1674051398367,1.244,1602.4,1601.9,0.23]
[1674051398612,1.244,1602.4,1601.8,0.23]
[1674051398924,1.244,1602.4,1601.8,3.34662407]
[1674051399085,1.244,1602.5,1601.9,3.0]
[1674051399290,1.3745,1602.5,1602.0,0.23]
[1674051399720,1.244,1602.5,1601.9,1.6984]
[1674051399931,1.244,1602.7,1602.0,3.11662407]
[1674051400276,1.244,1602.7,1602.1,3.23]
[1674051400460,1.239,1602.6,1602.1,3.23]
[1674051400671,2.244,1602.5,1602.1,0.87126241]
[1674051400911,2.244,1602.5,1602.1,0.23]
[1674051401120,2.244,1602.5,1602.0,0.23]
[1674051401287,1.244,1602.5,1602.0,0.23]
[1674051401758,1.144,1602.5,1601.9,0.23]
[1674051402807,3.11662407,1602.4,1601.7,0.066]
[1674051402977,1.239,1602.0,1601.5,0.39866241]
[1674051403194,1.244,1602.1,1601.5,0.33466241]
[1674051403388,1.244,1602.1,1601.5,3.45128648]
[1674051403605,1.246,1602.1,1601.5,3.45128648]
[1674051403815,1.244,1602.1,1601.6,0.34512865]
[1674051404236,1.244,1602.1,1601.7,0.00591355]
[1674051404478,1.244,1602.2,1601.7,0.00591355]
[1674051405025,20.537,1602.3,1601.7,0.00591355]
[1674051405663,20.537,1602.3,1601.7,0.23591355]
[1674051405970,20.537,1602.3,1601.7,3.81064184]
[1674051406140,20.537,1602.3,1601.8,3.0]
[1674051406346,1.31,1602.3,1601.9,0.23]
[1674051406603,1.244,1602.3,1601.9,0.23]
[1674051406912,0.1244,1602.2,1601.9,0.23]
[1674051407140,0.1244,1602.2,1601.8,0.23]
[1674051407278,1.244,1602.3,1601.8,0.23]
[1674051407484,1.194,1602.3,1601.8,0.23]
[1674051407936,1.194,1602.3,1601.9,0.3]
[1674051408158,0.08685557,1602.4,1602.0,0.23]
[1674051408342,1.239,1602.4,1602.0,0.23]
[1674051409395,15.88579907,1602.5,1602.0,0.23]
[1674051410127,4.36062407,1602.4,1602.0,0.23]
[1674051410822,3.11662407,1602.4,1602.0,0.23]
[1674051411327,4.11662407,1602.4,1602.0,0.23]
[1674051411537,5.68080398,1602.4,1602.0,0.23]
[1674051411783,5.74680398,1602.4,1602.0,0.23]
[1674051411944,4.74680398,1602.4,1602.0,0.23]
[1674051412155,4.68080398,1602.4,1602.0,0.23]
[1674051412833,3.11662407,1602.3,1601.9,0.3]
[1674051412991,4.82870447,1602.3,1601.9,0.3]
[1674051413206,1.0,1602.2,1601.9,0.3]
[1674051413847,0.5340804,1602.3,1601.9,0.3]
[1674051414060,3.11662407,1602.3,1601.9,0.3]
[1674051414355,1.63017991,1602.4,1602.0,0.23]
[1674051414609,2.56417991,1602.4,1602.0,0.23]
[1674051414827,1.56417991,1602.4,1602.0,0.23]
[1674051415639,2.56417991,1602.4,1602.0,0.23]
[1674051416794,1.56417991,1602.4,1602.0,0.23]
[1674051417516,0.15641799,1602.3,1602.0,0.23]
[1674051417986,1.39941799,1602.3,1601.9,0.3]
[1674051418564,1.0,1602.2,1601.9,0.3]
[1674051418983,1.39941799,1602.3,1601.9,0.3]
[1674051419194,1.1399418,1602.2,1601.9,0.3]
[1674051419439,4.25656587,1602.2,1601.9,0.3]
[1674051419652,3.25656587,1602.2,1601.9,0.3]
[1674051420192,3.11662407,1602.1,1601.9,0.3]
[1674051420366,4.55956587,1602.2,1601.9,0.3]
[1674051420570,0.13769418,1602.1,1601.9,0.3]
[1674051421392,1.13769418,1602.1,1601.9,0.3]
[1674051421645,4.25431825,1602.1,1601.9,0.3]
[1674051422455,0.13769418,1602.1,1601.9,0.3]
[1674051422868,0.1399418,1602.2,1601.9,0.3]
[1674051423093,1.39941799,1602.3,1601.9,0.3]
[1674051423548,0.15641799,1602.3,1601.9,0.3]
[1674051423830,0.15641799,1602.3,1602.0,0.23]
[1674051424462,0.15641799,1602.3,1601.9,0.3]
[1674051424463,3.27304206,1602.3,1601.9,0.3]
[1674051424911,0.15641799,1602.3,1601.9,0.3]
[1674051425105,0.15641799,1602.3,1602.0,0.23]
[1674051425303,3.11662407,1602.2,1601.9,0.3]
[1674051425515,0.32730421,1602.2,1601.9,0.3]
[1674051425706,1.0,1602.3,1602.0,0.23]
[1674051426060,1.0,1602.4,1602.0,0.23]
[1674051427128,5.36062407,1602.4,1602.0,0.23]
[1674051427292,1.244,1602.3,1601.9,0.3]
[1674051427512,1.1244,1602.2,1601.9,0.3]
[1674051429878,0.1244,1602.2,1601.9,0.3]
[1674051430541,0.066,1602.4,1601.9,0.3]
[1674051430753,9.76,1602.5,1601.9,0.3]
[1674051430997,8.516,1602.5,1601.9,0.3]
[1674051431323,0.066,1602.5,1602.0,5.24328017]
[1674051431534,18.2923,1602.6,1602.0,5.30728017]
[1674051431723,18.2923,1602.6,1602.0,0.064]
[1674051431945,18.2923,1602.6,1602.0,3.0]
[1674051432145,18.2923,1602.6,1602.1,0.3]
[1674051432742,1.066,1602.6,1602.1,0.3]
[1674051432985,8.5345,1602.7,1602.1,0.3]
[1674051433180,11.65112407,1602.7,1602.1,0.3]
[1674051433389,1.0,1602.6,1602.1,0.3]
[1674051433632,11.64912407,1602.7,1602.1,0.3]
[1674051433852,12.94628848,1602.7,1602.1,0.3]
[1674051434429,13.60022455,1602.7,1602.2,1.08386983]
[1674051434644,13.60022455,1602.7,1602.1,0.95393607]